Cogmind - Beta 15 @@@ ROGUE MODE // 2025.07.07 @ 20:59:17 Player: Windjigo Result: Destroyed by Shrapnel Trap Performance ------------- Evolutions (0) 0 Regions Visited (2) 400 Robots Destroyed (24) 120 Value Destroyed (471) 471 Prototype IDs (0) 0 Alien Tech Used (0) 0 Bonus (0) 0 TOTAL SCORE: 991 Bonus ------- None Cogmind --------- Core Integrity 0/250 Matter 300/300 Energy 98/100 System Corruption 0% Temperature Cool (0) Movement Rolling (110) Location -10/Subcaves Parts ------- > --- POWER (1) -------- (None) > --- PROPULSION (2) --- Subdweller Monowheel Subdweller Monowheel > --- UTILITY (2) ------ Medium Storage Unit Seismic Detector > --- WEAPON (2) ------- Subdweller Laser Subdweller Machine Gun > --- INVENTORY (10) --- Subdweller Power Source Subdweller Monowheel Disposable Heat Sink Signal Interpreter Targeting Computer Hacking Suite Subdweller Machine Gun Subdweller Shrapnel Launcher Datajack Flamer Peak State ------------ > --- POWER ------------ Ion Engine > --- PROPULSION ------- Subdweller Monowheel Subdweller Monowheel > --- UTILITY ---------- Medium Storage Unit Sensor Array > --- WEAPON ----------- Subdweller Laser Subdweller Machine Gun > --- INVENTORY -------- Wheel Disposable Heat Sink Signal Interpreter Seismic Detector Targeting Computer Hacking Suite Subdweller Machine Gun Datajack Mining Laser Flamer [Rating: 12] Favorites ----------- Power Ion Engine Engine Ion Engine Propulsion Wheel Wheel Wheel Utility Medium Storage Unit Device Sensor Array Storage Medium Storage Unit Weapon Beam Cannon Energy Gun Subdweller Laser Energy Cannon Beam Cannon Ballistic Gun Assault Rifle Special Weapon Mining Laser Build | -11 -10 -10 ------- Run | Yrd Mat Sub Slots Evolved . | . . . Power . | . . . Propulsion . | . . . Utility . | . . . Weapon . | . . . Parts Attached 25 | 7 9 9 Power 2 | 1 1 . Engine 2 | 1 1 . Core . | . . . Reactor . | . . . Propulsion 9 | 2 3 4 Treads . | . . . Leg . | . . . Wheel 9 | 2 3 4 Hover . | . . . Flight . | . . . Utility 4 | 2 2 . Device 2 | 1 1 . Storage 2 | 1 1 . Processor . | . . . Hackware . | . . . Protection . | . . . Artifact . | . . . Weapon 10 | 2 3 5 Energy Gun 5 | 1 1 3 Energy Cannon 2 | . 1 1 Ballistic Gun 2 | 1 . 1 Ballistic Cannon . | . . . Launcher . | . . . Special Weapon 1 | . 1 . Impact Weapon . | . . . Slashing Weapon . | . . . Piercing Weapon . | . . . Special Melee Weapon . | . . . Unidentified Prototypes . | . . . Parts Lost 6 | . 3 3 Power 2 | . 1 1 Propulsion 2 | . 1 1 Utility 1 | . . 1 Weapon 1 | . 1 . Highest Loss Streak 1 | . 1 1 To Critical Strikes . | . . . Average Backups 8 | 1 8 9 Power . | . . . Propulsion 1 | . 1 1 Utility 3 | . 2 4 Weapon 3 | . 3 3 Tool/Special . | . . . Unused Backups 13 | . . 13 Power 1 | . . 1 Propulsion 3 | . . 3 Utility 4 | . . 4 Weapon 4 | . . 4 Tool/Special 1 | . . 1 Average Slot Usage (%) 99 | . 99 99 Engine 13 | . 13 13 Wheel 27 | . 27 27 Device 13 | . 14 13 Storage 14 | . 14 14 Energy Gun 13 | . 11 14 Energy Cannon 9 | . 9 8 Ballistic Gun 5 | . 6 4 Peak Build Rating 12 | 7 9 12 Average Rating 8 | 5 7 10 On Entrance 5 | . 7 9 Naked Turns . | . . . Heaviest Build 24 | 15 22 24 Greatest Support 40 | 32 32 40 Greatest Overweight (x) 2 | . 1 2 Average Overweight (x) . | . . . Largest Inventory Capacity 10 | 8 10 10 Average Capacity 9 | 7 9 10 Most Carried 10 | 5 10 10 Average Carried 8 | 1 8 9 Final Capacity 10 | 8 10 10 Final Carried 10 | 2 10 10 Class Distribution -------------------- 82% | Mutant 17% | Scavenger-Mutant Dominant Class ---------------- Mutant | -10/Materials Mutant | -10/Subcaves Resources | -11 -10 -10 ----------- Run | Yrd Mat Sub Matter Collected 550 | 276 142 132 Remotely . | . . . Salvage Created 808 | 46 504 258 Parts 51 | 6 24 21 Haulers Intercepted 2 | . 2 . Recyclers Shooed . | . . . Parts Field Recycled . | . . . Retrieved Matter . | . . . Parts Self-Destructed 5 | . . 5 Prevented . | . . . Kills | -11 -10 -10 ------- Run | Yrd Mat Sub Combat Hostiles Destroyed 14 | . 7 7 Guns 7 | . 3 4 Cannons 7 | . 4 3 Classes Destroyed 9 | 1 7 1 Worker 1 | . 1 . Tunneler 3 | 2 1 . Hauler 2 | . 2 . Recycler 2 | . 2 . Operator 1 | . 1 . Watcher 1 | . 1 . Swarmer 6 | . 5 1 Grunt 2 | . 2 . Subdweller 6 | . . 6 Best Kill Streak 6 | 1 6 2 Combat Bots Only 3 | . 3 2 Max Kills in Single Turn 2 | 1 2 1 Gunslinging . | . . . Exploded . | . . . Melee . | . . . Uniques/NPCs Destroyed . | . . . Combat | -11 -10 -10 -------- Run | Yrd Mat Sub Hostile Shots Fired 82 | . 50 32 Missed 20 | . 10 10 Hits 62 | . 40 22 Projectile 62 | . 40 22 Critical Strikes 2 | . 1 1 Damage Taken 973 | . 434 539 Core 268 | . 64 204 Absorbed by Shields . | . . . Core Remaining (%) 100 | 100 . . Volleys Fired 66 | 2 37 27 Largest 2 | 2 2 2 Hottest 125 | 70 125 125 Shots Fired 126 | 4 72 50 Gun 76 | 4 43 29 Cannon 45 | . 28 17 Launcher . | . . . Special 5 | . 1 4 Kinetic 22 | 2 14 6 Thermal 104 | 2 58 44 Explosive . | . . . Electromagnetic . | . . . Robot Hit Streak 19 | 2 7 19 Robot Miss Streak 4 | 1 4 1 Penetration Max . | . . . Secondary Targets . | . . . Shots Hit Robots 78 | 2 42 34 Core Hits 35 | 2 20 13 Critical Kills . | . . . Critical Parts Destroyed . | . . . Critical Strikes 1 | . 1 . Burn 1 | . 1 . Melee Attacks . | . . . Impact . | . . . Slashing . | . . . Piercing . | . . . Sneak Attacks . | . . . Combat Hostiles . | . . . Follow-up Attacks . | . . . Damage Inflicted 1365 | 27 679 659 Guns 843 | 27 383 433 Cannons 522 | . 296 226 Explosions . | . . . Melee . | . . . Ramming . | . . . Kinetic 237 | 15 113 109 Thermal 1128 | 12 566 550 Explosive . | . . . Electromagnetic . | . . . Impact . | . . . Slashing . | . . . Piercing . | . . . Highest Corruption . | . . . Average Corruption . | . . . Corruption Purged . | . . . Corruption Blocked . | . . . Overload Shots . | . . . Overflow Damage 22 | . 22 . Projectiles 22 | . 22 . Explosions . | . . . Melee . | . . . Knockbacks . | . . . Impact . | . . . Kinetic . | . . . Secondary . | . . . Self-Inflicted Damage . | . . . Shots . | . . . Rammed . | . . . Targets Rammed . | . . . Kicked . | . . . Crushed . | . . . Highest Temperature 315 | 9 315 10 Average Temperature 79 | 6 89 4 Received Heat Transfer 156 | . 84 72 Siege Activations . | . . . Martial Activations . | . . . Shielding Activations . | . . . Robots Disrupted . | . . . Combat Hostiles . | . . . Robots Corrupted . | . . . Combat Hostiles . | . . . Parts Fried . | . . . Impact Corruptions . | . . . Robots Melted . | . . . Combat Hostiles . | . . . Parts Melted 6 | . 2 4 Heat Transferred 2483 | 37 1443 1003 Parts Sabotaged . | . . . Parts Stolen . | . . . Parts Stripped . | . . . Power Chain Reactions . | . . . Alert | -11 -10 -10 ------- Run | Yrd Mat Sub Maximum Alert Level . | . . . Low Security (%) 100 | 100 100 . Level 1 . | . . . Level 2 . | . . . Level 3 . | . . . Level 4 . | . . . Level 5 . | . . . High Security . | . . . Max Security . | . . . Peak Influence 77 | 5 77 . Initial . | . . . Average 36 | . 40 . Influence Increases 350 | 10 320 20 Destroy 0b10 Robot/C 160 | . 140 20 Destroy 0b10 Robot/NC 50 | 10 40 . Destroy Leader 36 | . 36 . Successful Hack 14 | . 14 . Disable Machine 30 | . 30 . Lose Combat Pursuer 60 | . 60 . Influence Decreases 350 | 10 278 62 Entered New Map 21 | . . 21 Time Decay 299 | 10 248 41 Lost Part 30 | . 30 . Squads Dispatched 1 | . 1 . Investigation . | . . . Extermination . | . . . Reinforcement 1 | . 1 . Assault . | . . . Garrison . | . . . Intercept . | . . . Searches Triggered . | . . . Construction Impeded . | . . . Haulers Reinforced . | . . . Active Scanning Responses . | . . . Cargo Convoy Interrupts . | . . . Stealth | -11 -10 -10 --------- Run | Yrd Mat Sub Distress Signals 1 | . 1 . Communications Jammed . | . . . Distress Signals . | . . . Times Spotted 27 | . 18 9 Peak Tracking Total 5 | . 5 2 Tactical Retreats 4 | . 4 . Traps | -11 -10 -10 ------- Run | Yrd Mat Sub Traps Triggered 4 | . 2 2 Indirectly . | . . . Trap Hack Attempts . | . . . Triggered . | . . . Disarmed . | . . . Reprogrammed . | . . . Reused . | . . . Traps Extracted . | . . . Installed . | . . . Triggered . | . . . Machines | -11 -10 -10 ---------- Run | Yrd Mat Sub Machines Disabled 2 | . 2 . Max in Single Turn 1 | . 1 . Machines Repaired . | . . . Machines Dismantled . | . . . Machines Sabotaged . | . . . Overloaded Fab Kills . | . . . Hacking | -11 -10 -10 --------- Run | Yrd Mat Sub Machines Accessed 6 | . 6 . Terminals 5 | . 5 . Fabricators . | . . . Repair Stations 1 | . 1 . Recycling Units . | . . . Scanalyzers . | . . . Garrison Access . | . . . Total Hacks 13 | . 13 . Successful 4 | . 4 . Failed 9 | . 9 . Catastrophic 2 | . 2 . Database Lockouts . | . . . Manual 10 | . 10 . Terminals 10 | . 10 . Fabricators . | . . . Repair Stations 3 | . 3 . Recycling Units . | . . . Scanalyzers . | . . . Garrison Access . | . . . Terminal Hacks 1 | . 1 . Zone Layout 1 | . 1 . Fabricator Hacks . | . . . Repair Station Hacks 1 | . 1 . Scan Component 1 | . 1 . Recycling Unit Hacks . | . . . Scanalyzer . | . . . Garrison Access Hacks . | . . . Unauthorized Hacks 2 | . 2 . Terminals 2 | . 2 . Botnet 2 | . 2 . Fabricators . | . . . Repair Stations . | . . . Recycling Units . | . . . Scanalyzers . | . . . Garrison Access . | . . . Data Cores Recovered . | . . . Used . | . . . Hacking Detections 6 | . 6 . Full Trace Events . | . . . Feedback Events . | . . . Feedback Blocked . | . . . Robot Schematics Acquired . | . . . Robots Built . | . . . Authchips . | . . . Time . | . . . Total Robot Build Rating . | . . . Part Schematics Acquired . | . . . Parts Built . | . . . Authchips . | . . . Time . | . . . Total Part Build Rating . | . . . Parts Repaired . | . . . Time . | . . . Parts Recycled . | . . . Recycled Matter . | . . . Retrieved Matter . | . . . Retrieved Components . | . . . Parts Scanalyzed . | . . . Part Schematics Acquired . | . . . Parts Damaged . | . . . Bothacking | -11 -10 -10 ------------ Run | Yrd Mat Sub Used RIF Installer . | . . . Robots Hacked . | . . . Non-combat . | . . . Combat . | . . . Robot Hacks Applied . | . . . Relay Couplers Released . | . . . Fabnet Peak Effective % . | . . . Robots Rewired . | . . . Allies Hacked . | . . . Hacks Repelled . | . . . Allies | -11 -10 -10 -------- Run | Yrd Mat Sub Total Allies . | . . . Largest Group . | . . . Highest-Rated Group . | . . . Highest-Rated Ally . | . . . Total Orders . | . . . Ally Attacks . | . . . Total Damage . | . . . Kills . | . . . Allies Corrupted . | . . . Allies Melted . | . . . Intel | -11 -10 -10 ------- Run | Yrd Mat Sub Active Infowar (turns) 1536 | 32 627 877 Sensors 1252 | . 594 658 Seismic 284 | 32 33 219 Robot Analysis Total . | . . . Derelict Logs Recovered 1 | . . 1 Drone Launches . | . . . Drone Recoveries . | . . . Exploration | -11 -10 -10 ------------- Run | Yrd Mat Sub Turns Passed 1589 | 73 627 889 Spaces Moved 1180 | 58 417 705 Core 13 | 13 . . Treads . | . . . Legs . | . . . Wheels 1167 | 45 417 705 Hover . | . . . Flight . | . . . Fastest Speed 50 | 50 80 95 Average Speed 96 | 88 93 99 Slowest Speed 110 | 100 100 110 Overloaded Moves . | . . . Propulsion Burnouts . | . . . Robots Hopped . | . . . Potential Cave-ins . | . . . Cave-ins Triggered . | . . . Exploration Rate (%) 43 | 3 79 49 Regions Visited 2 Branch Regions 1 Pre-discovered Areas . | . . . Known Exits Taken . | . . . Unknown Exits Taken 2 | 1 1 . Scrap Searched 1 | . . 1 Spaces Dug . | . . . Terrain Destroyed . | . . . Melee . | . . . Projectile . | . . . AOE . | . . . Terrain Rammed . | . . . Walls Destroyed . | . . . Machines Disabled . | . . . Actions | -11 -10 -10 --------- Run | Yrd Mat Sub Total 1494 | 75 581 838 Wait 173 | . 99 74 Move 1178 | 57 416 705 Hop . | . . . Pick Up 30 | 9 14 7 Fast Attach 1 | . . 1 Attach 12 | 7 3 2 Detach . | . . . Swap 18 | . 8 10 Drop 16 | . 4 12 Fire 66 | 2 37 27 Melee . | . . . Ram . | . . . Kick . | . . . Crush . | . . . Escape Stasis . | . . . Rewire . | . . . Trap . | . . . Miscellaneous . | . . . Route ------- -11/Scrapyard -10/Materials (discovered 4 exits: [*Mat] / [*Min x2] / [*Sub]) -10/Subcaves (discovered 1 exit: [*Mat]) History --------- Turn | Location | Event 29 | -11/Scrapyard | Discovered new exit (range 14) 74 | -11/Scrapyard | Entered Materials 226 | -10/Materials | Discovered new exit (range 7) 307 | -10/Materials | Discovered new exit (range 6) 308 | -10/Materials | Build established: Mutant 541 | -10/Materials | Discovered new exit (range 11) 692 | -10/Materials | Discovered new exit (range 10) 701 | -10/Materials | Entered Subcaves 702 | -10/Subcaves | Approached by a straggling Scientist 803 | -10/Subcaves | Discovered new exit (range 13) 894 | -10/Subcaves | Learned Materials terminal intel 942 | -10/Subcaves | Core integrity fell below 50% 1358 | -10/Subcaves | Core integrity fell below 20% 1590 | -10/Subcaves | Destroyed by Shrapnel Trap Last Messages --------------- 01360_ ZX-YYO(R) destroyed. 01366_ OU-7JQ(R) destroyed. 01369_ Acquired 7 matter. 01377_ Acquired Sub. Power Source. 01381_ Dropped Wheel. 01381_ Acquired Sub. Monowheel. 01383_ Dropped Sub. Monowheel. 01383_ Acquired Sub. Monowheel. 01384_ Dropped Sub. Laser. 01387_ Dropped Mining Laser. 01387_ Acquired Sub. Shrapnel Launcher. 01388_ Acquired 20 matter. 01532_ 06-6RJ(u) deconstructs Twisted Machinery. 01577_ Triggered Piercing Trap. 01577_ Spikes shoot up from the floor. 01577_ Ion Engine destroyed. 01577_ Critical hit (Impale). 01590_ Triggered Shrapnel Trap. 01590_ An expanding cloud of shrapnel blasts out in all directions. Map ----- +----------------------------------------------------+ | ?????????????????????????????????????????????????? | | ?????????????????????????????????????????????????? | | ?????????????????????????????????????????????????? | | ?????????????????????????????????????????????????? | | ?????????????????????????????????????????????????? | | ?????????????????????????????????????????????????? | | ?????????????????????????????????????????????????? | | ?????????????????????????????????????????????????? | | ?????????????????????????????????????????????????? | | ?????????????????????????????????????????????????? | | ?????????????????????????????????????????????????? | | ?????????????????????????????????????????????????? | | ?????????????????????????????????????????????????? | | ?????????????????????????????????????????????????? | | ?????????????????????????????????????????????????? | | ?????????????????????????????????????????????????? | | ?????????????????????????????????????????????????? | | ####?????????????????????????????????????????????? | | # #?????????????????????????????????????????????? | | # #?????????????????????????????????????????????? | | #???????????????????????????????????######????? | | #??######????????????????????#####?## ##???? | | #### # ##??#?###?#?????????? #?# ####? | | % % ### # # # #####??? #??# ## | | % % #?# ####^ #???# # | | % # ### @ ^#?????##### | | ### #??# # ### O ###?????????## | | ##?# #??# ??????## ##########??## # | | ####??#% ##?# ###?????## ## ##??# ## | | ###?##### ### #????## ##?# #? | | ????# ## #???## ### ## | | ???## # #?#### "" | | ### ## #### "" " | | % ## #?# " # " | | ### ""## " | | ### %# ## ### | | ?# ## ## ##?## | | #### ##???# # | | #??## [ #### [ ###???? # | | %######### ### ###??# ##?????## # | | ##????????# #?## ##????##### ##?????# | | ?????????# #?## ##???????### ###???# | | ????????# #?####????????# ##?# | | ????????## ######????????????# ## #?# # | | ?????????### ##?????????????????## ####% #?""##? | | ???????????####???????????????????###???# ##?#???? | | ????????????????????????????????????????###??????? | | ?????????????????????????????????????????????????? | | ?????????????????????????????????????????????????? | | ?????????????????????????????????????????????????? | +----------------------------------------------------+ Best States ------------- Heat Dissipation 25 Energy Generation 10 Energy Capacity 250 Matter Stores 300 Matter Capacity 300 Sight Range 16 Robot Scan Range 14 Terrain Scan Density 10 Evasion (%) 50 Item Schematics ----------------- None Robot Schematics ------------------ None Fabricated ------------ Nothing Repaired ---------- Nothing Alien Tech Used ----------------- None Achievements -------------- None Challenges ------------ None Game ------ Seed AngularHelicalDirector Manual? 0 Play Time 00:15:27 Cumulative 98.7 hours Start 2025.07.07 @ 20:46:36 End 2025.07.07 @ 20:59:17 Sessions 1 Manual Loads 0 Difficulty Rogue Special Mode None Game No. 75 Rogue 75 Adventurer 0 Explorer 0 Win Type - Total 0 Types 0/0/0/0/0/0/0/0/0/0 Lore% 59 Gallery% 48 Achievement% 44 Wizard Run 0 Options --------- Layout 1 ASCII 0 Keyboard 0 Movement Mouse Keybinds 0 Fullscreen 1 Font 24/Smallcaps Map View 50x35 Zoom Use 0% Tactical HUD 1 Map Filters NONE Filters NONE Steam 1 RUN: 6e2acb97-a6e7-459a-98b1-e94df0eeaf5f